fUSD/lending_fUSD_20251215
["ID","MTS","AMOUNT","RATE_DAILY","PERIOD"]
[398511811,1765768240229,-481.0,0.00016699,2]
[398511812,1765768240238,-500.0,0.00016699,2]
[398511813,1765768240247,-500.0,0.00016699,2]
[398511814,1765768240258,-150.0,0.00016699,2]
[398511815,1765768240267,-158.20848943,0.00016699,2]
[398511816,1765768240276,-150.0,0.00016699,2]
[398511818,1765768240286,-500.0,0.00016699,2]
[398511819,1765768240295,-150.0,0.00016699,2]
[398511820,1765768240305,-150.0,0.00016699,2]
[398511821,1765768240315,-500.0,0.00016699,2]
[398511822,1765768240325,-150.0,0.00016699,2]
[398511823,1765768240335,-238.16065675,0.00016699,2]
[398511824,1765768240345,-500.0,0.00016699,2]
[398511825,1765768240354,-150.62639118,0.00016699,2]
[398511826,1765768240363,-150.0,0.00016699,2]
[398511827,1765768240374,-151.26105939,0.00016699,2]
[398511828,1765768240384,-150.94683027,0.00016699,2]
[398511829,1765768240393,-500.0,0.00016699,2]
[398511830,1765768240403,-500.0,0.00016699,2]
[398511831,1765768240413,-1744.0,0.00016699,2]
[398511832,1765768240423,-1306.0,0.000167,2]
[398511833,1765768240434,-150.0,0.00016726,2]
[398511834,1765768240444,-150.45296658,0.00016726,2]
[398511835,1765768240453,-150.0,0.00016726,2]
[398511836,1765768240462,-150.0,0.00016726,2]
[398511837,1765768240472,-150.0,0.00016726,2]
[398511838,1765768240481,-150.84686874,0.00016726,2]
[398511839,1765768240491,-502.0,0.0001674,2]
[398511840,1765768240500,-511.22214592,0.00016745,2]
[398511841,1765768240509,-1502.0,0.00016764,2]
[398511842,1765768240519,-249.71605212,0.00016797,2]
[398511843,1765768240528,-362.32825275,0.00016797,2]
[398511844,1765768240538,-500.0,0.00016797,2]
[398511845,1765768240546,-164.4805502,0.00016797,2]
[398511846,1765768240556,-502.53165782,0.00016797,2]
[398511847,1765768240565,-500.0,0.00016797,2]
[398511848,1765768240574,-500.0,0.00016798,2]
[398511849,1765768240583,-500.0,0.00016798,2]
[398511850,1765768240592,-500.0,0.00016798,2]
[398511851,1765768240602,-500.0,0.00016798,2]
[398511852,1765768240611,-500.0,0.00016798,2]
[398511853,1765768240621,-213.99064988,0.00016798,2]
[398511854,1765768240630,-501.61693991,0.00016798,2]
[398511855,1765768240640,-31000.93220412,0.000168,2]
[398511856,1765768240650,-5525.0,0.000168,5]
[398511857,1765768240659,-500.0,0.0001681,2]
[398511858,1765768240669,-500.0,0.0001681,2]
[398511859,1765768240678,-500.0,0.0001681,2]
[398511860,1765768240687,-500.0,0.0001681,2]
[398511861,1765768240696,-506.00148128,0.0001681,2]
[398511862,1765768240705,-180.94832366,0.0001681,2]
[398511863,1765768240714,-168.0,0.00016811,2]
[398511864,1765768240723,-31000.9322041,0.00016811,2]
[398511865,1765768240732,-253.57666383,0.00016817,2]
[398511867,1765768240742,-31000.9322041,0.00016822,2]
[398511868,1765768240751,-2468.63146,0.0001683,2]
[398511869,1765768240760,-543.7,0.00016831,2]
[398511870,1765768240771,-31000.9322041,0.00016833,2]
[398511871,1765768240780,-500.0,0.00016836,2]
[398511872,1765768240789,-150.0,0.00016836,2]
[398511873,1765768240798,-984.0,0.00016836,2]
[398511874,1765768240807,-481.0,0.00016836,2]
[398511875,1765768240817,-500.0,0.00016836,2]
[398511876,1765768240826,-500.0,0.00016836,2]
[398511877,1765768240835,-150.0,0.00016836,2]
[398511878,1765768240844,-150.0,0.00016836,2]
[398511879,1765768240853,-500.0,0.00016836,2]
[398511880,1765768240862,-150.0,0.00016836,2]
[398511881,1765768240871,-436.29411008,0.00016836,2]
[398511882,1765768240880,-500.0,0.00016836,2]
[398511883,1765768240890,-500.0,0.00016836,2]
[398511884,1765768240899,-500.0,0.00016836,2]
[398511885,1765768240909,-1744.0,0.00016836,2]
[398511886,1765768240918,-165.288,0.00016837,2]
[398511887,1765768240928,-2126.004,0.00016837,2]
[398511888,1765768240938,-31000.9322041,0.00016844,2]
[398511889,1765768240947,-31000.9322041,0.00016856,2]
[398511890,1765768240956,-3451.0,0.00016858,2]
[398511891,1765768240965,-617.531,0.00016858,2]
[398511892,1765768240974,-1607.0,0.00016858,2]
[398511893,1765768240983,-1264.235,0.00016858,2]
[398511894,1765768240992,-643.547,0.00016858,2]
[398511895,1765768241002,-158.21277974,0.0001686,2]
[398511896,1765768241011,-500.0,0.00016862,2]
[398511897,1765768241020,-500.0,0.00016862,2]
[398511898,1765768241030,-150.0,0.00016863,2]
[398511899,1765768241038,-150.0,0.00016863,2]
[398511900,1765768241048,-31000.9322041,0.00016867,2]
[398511901,1765768241057,-1199.21,0.00016872,2]
[398511902,1765768241067,-911.0,0.00016872,2]
[398511903,1765768241076,-6522.0,0.00016872,2]
[398511904,1765768241086,-2486.276,0.00016872,2]
[398511905,1765768241095,-4798.0,0.00016872,2]
[398511906,1765768241104,-31000.9322041,0.00016878,2]
[398511907,1765768241114,-31000.9322041,0.00016889,2]
[398511908,1765768241123,-500.0,0.00016899,2]
[398511910,1765768241132,-500.0,0.00016899,2]
[398511911,1765768241142,-2250.97177215,0.00016899,2]
[398511912,1765768241152,-2250.97177215,0.000169,2]
[398511913,1765768241161,-2250.97177215,0.000169,2]
[398511914,1765768241171,-2250.97177215,0.000169,2]
[398511915,1765768241187,-2250.97177215,0.000169,2]
[398511916,1765768241205,-183.64424086,0.000169,2]
[398511917,1765768241214,-10000.0,0.000169,2]
[398511918,1765768241224,-10000.0,0.000169,2]
[398511919,1765768241235,-1009.0,0.000169,2]
[398511920,1765768241244,-31000.9322041,0.000169,2]
[398511921,1765768241253,-185.16879351,0.000169,2]
[398511922,1765768241262,-2972.5294223,0.000169,2]
[398511923,1765768241271,-876.46152714,0.000169,2]
[398511924,1765768241280,-1744.76848382,0.000169,2]
[398511925,1765768241290,-150.9361352,0.00016902,2]
[398511926,1765768241299,-481.25235646,0.00016913,2]
[398511927,1765768241309,-167.56799976,0.00016915,2]
[398511928,1765768241318,-168.0,0.00016934,2]
[398511929,1765768241327,-1043.43,0.00016944,2]
[398511930,1765768241336,-301.48416384,0.00016944,2]
[398511931,1765768241346,-200.0,0.00016944,2]
[398511932,1765768241355,-200.0,0.00016944,2]
[398511933,1765768241363,-500.0,0.00016944,2]
[398511934,1765768241372,-595.37131296,0.00016944,2]
[398511935,1765768241381,-2468.63147,0.0001695,2]
[398511936,1765768241390,-4806.0,0.00016972,2]
[398511937,1765768241399,-164.23231328,0.00016973,2]
[398511938,1765768241408,-501.04974964,0.00016973,2]
[398511940,1765768241417,-500.0,0.00016973,2]
[398511941,1765768241426,-500.0,0.00016973,2]
[398511942,1765768241435,-500.98096599,0.00016973,2]
[398511943,1765768241444,-500.0,0.00016973,2]
[398511944,1765768241453,-593.85763058,0.00016973,2]
[398511945,1765768241462,-500.0,0.00016973,2]
[398511946,1765768241472,-500.0,0.00016973,2]
[398511947,1765768241481,-500.0,0.00016973,2]
[398511948,1765768241490,-500.0,0.00016973,2]
[398511949,1765768241500,-500.0,0.00016973,2]
[398511950,1765768241510,-500.0,0.00016973,2]
[398511951,1765768241519,-500.0,0.00016973,2]
[398511952,1765768241528,-500.0,0.00016973,2]
[398511953,1765768241537,-500.0,0.00016973,2]
[398511954,1765768241546,-500.0,0.00016973,2]
[398511955,1765768241556,-341.17196884,0.00016973,2]
[398511956,1765768241565,-500.0,0.00016973,2]
[398511957,1765768241574,-500.58719052,0.00016973,2]
[398511958,1765768241584,-500.0,0.00016973,2]
[398511959,1765768241593,-500.0,0.00016973,2]
[398511960,1765768241602,-500.0,0.00016973,2]
[398511961,1765768241611,-172.51749822,0.00016973,2]
[398511962,1765768241620,-500.74493632,0.00016973,2]
[398511963,1765768241630,-500.0,0.00016973,2]
[398511964,1765768241639,-500.0,0.00016973,2]
[398511965,1765768241647,-500.0,0.00016973,2]
[398511966,1765768241657,-500.0,0.00016973,2]
[398511967,1765768241666,-150.0,0.00016973,2]
[398511968,1765768241675,-984.0,0.00016973,2]
[398511969,1765768241684,-481.0,0.00016973,2]
[398511970,1765768241694,-415.7881195,0.00016973,2]
[398511971,1765768241702,-595.87213918,0.00016973,2]
[398511972,1765768241711,-165.54798598,0.00016973,2]
[398511973,1765768241721,-223.01620776,0.00016973,2]
[398511974,1765768241730,-500.0,0.00016973,2]
[398511975,1765768241739,-500.0,0.00016973,2]
[398511976,1765768241748,-500.0,0.00016973,2]
[398511977,1765768241757,-500.0,0.00016973,2]
[398511978,1765768241767,-1744.0,0.00016973,2]
[398511979,1765768241776,-500.0,0.00016973,2]
[398511980,1765768241785,-150.0,0.00016973,2]
[398511981,1765768241794,-500.0,0.00016986,2]
[398511982,1765768241803,-188.97555549,0.00016986,2]
[398511983,1765768241813,-161.0330175,0.00016986,2]
[398511984,1765768241822,-150.0,0.00016986,2]
[398511985,1765768241833,-150.0,0.00016986,2]
[398511986,1765768241844,-174.33611087,0.00016986,2]
[398511987,1765768241854,-150.0,0.00016986,2]
[398511988,1765768241864,-500.0,0.00016997,2]
[398511989,1765768241873,-500.0,0.00016997,2]
[398511990,1765768241883,-500.0,0.00016997,2]
[398511991,1765768241892,-355.18540102,0.00016997,2]
[398511992,1765768241901,-151.0,0.00016997,2]
[398511993,1765768241910,-758.1149038,0.00016998,2]
[398511994,1765768241920,-500.0,0.00016999,2]
[398511995,1765768241930,-160.70566298,0.00016999,2]
[398511996,1765768241939,-2033.6123639,0.00016999,2]
[398511997,1765768241947,-2947.8772951,0.00016999,2]
[398511998,1765768241956,-189.528726,0.00016999,2]
[398511999,1765768241965,-3756.184059,0.00016999,2]
[398512000,1765768241974,-500.0,0.00016999,2]
[398512001,1765768241983,-1892.8274907,0.00016999,2]
[398512002,1765768241993,-308.09327567,0.00016999,2]
[398512003,1765768242002,-300.0,0.00016999,2]
[398512004,1765768242011,-671.67751751,0.00016999,2]
[398512005,1765768242021,-176.208725,0.00017,2]
[398512006,1765768242031,-150.0,0.00017,2]
[398512007,1765768242040,-495341.46761188,0.00017,2]
[398512008,1765768242054,-502.05290554,0.00017,2]
[398512009,1765768242073,-1749.18564804,0.00017,2]
[398512010,1765768242084,-1658.57091694,0.00017,2]
[398512011,1765768242456,-462.0,0.00016509,2]
[398512012,1765768242466,-1507.0,0.00016542,2]
[398512013,1765768242475,-47069.85486776,0.00017,2]
[398512014,1765768242491,-5932944.90981088,0.00017,2]
[398512015,1765768242511,-1576.67200483,0.00017,2]
[398512016,1765768242907,-1504.57028234,0.00017,2]
[398512017,1765768242919,-884.79552283,0.00017,2]
[398512018,1765768242930,-3230.07130978,0.00017,2]
[398512019,1765768242957,-4222.4757786,0.00017,2]
[398512020,1765768242968,-730.0,0.00017,2]
[398512021,1765768242980,-1847.29706136,0.00017,2]
[398512022,1765768242991,-451.169914,0.00017,2]
[398512023,1765768243002,-92819.8543863,0.00017,2]
[398512024,1765768243014,-1427.900885,0.00017,2]
[398512025,1765768243025,-4514.51,0.00017,2]
[398512027,1765768243041,-671.44990857,0.00017,2]
[398512030,1765768243052,-695.28994766,0.00017,2]
[398512032,1765768243063,-752.0900232,0.00017,2]
[398512033,1765768243083,-1604.40603985,0.00017,2]
[398512036,1765768243095,-479.47431379,0.00017,2]
[398512040,1765768243363,-150.0,0.00016699,2]
[398512041,1765768243372,-150.0,0.00016836,2]
[398512042,1765768243381,-204.95613233,0.00016872,2]
[398512043,1765768243392,-358.04386767,0.00016872,2]
[398512044,1765768243402,-150.0,0.00016973,2]
[398512045,1765768243411,-46183.65508056,0.00017,2]
[398512046,1765768243422,-123155.39793574,0.00017,2]
[398512047,1765768243433,-1302.81008527,0.00017,2]
[398512048,1765768243444,-636.960009,0.00017,2]
[398512049,1765768243455,-23348.12650023,0.00017,2]
[398512050,1765768243466,-203551.47797198,0.00017,2]
[398512051,1765768243477,-1988.99839046,0.00017,2]
[398512052,1765768243530,-1015.95344153,0.00017,2]
[398512053,1765768243542,-4139.35275217,0.00017,2]
[398512054,1765768243554,-783.9826518,0.00017,2]
[398512055,1765768243565,-392.42322,0.00017,2]
[398512057,1765768243577,-412.05845751,0.00017,2]
[398512058,1765768243588,-4334.78576873,0.00017,2]
[398512059,1765768243615,-337.27249606,0.00017,2]
[398512060,1765768243628,-1164.99761564,0.00017,2]
[398512062,1765768243640,-4779.79456686,0.00017,2]
[398512074,1765768247027,-150.0,0.00016699,2]
[398512075,1765768247037,-177.47642516,0.00016836,2]
[398512076,1765768247046,-104.22221587,0.00017,2]
[398512077,1765768247057,-2503.20420611,0.00017,2]
[398512078,1765768247068,-422.88,0.00017,2]
[398512079,1765768247078,-606.553,0.00017,2]
[398512080,1765768247089,-3605.53971555,0.00017,2]
[398512081,1765768247105,-3148.0,0.00017,2]
[398512082,1765768247116,-1509.34266157,0.00017,2]
[398512083,1765768247126,-582.0582955,0.00017,2]
[398512084,1765768247137,-1057.83701526,0.00017,2]
[398512085,1765768247147,-78911.23534651,0.00017,2]
[398512086,1765768247158,-347.3546,0.00017,2]
[398512087,1765768247168,-14218.90041072,0.00017,2]
[398512088,1765768247180,-10276.89826205,0.00017,2]
[398512089,1765768247192,-420.22282652,0.00017,2]
[398512090,1765768247203,-709.06115592,0.00017,2]
[398512091,1765768247213,-4586.5990225,0.00017,2]
[398512092,1765768247225,-682.7185601,0.00017,2]
[398512093,1765768247236,-135082.55191085,0.00017,2]
[398512094,1765768247247,-100519.45339771,0.00017,2]
[398512095,1765768247259,-43588.18872184,0.00017,2]
[398512096,1765768247270,-296.317764,0.00017,2]
[398512199,1765768578212,5000.0,0.000157,2]
[398512231,1765768643866,3635.79222503,0.000157,2]
[398512232,1765768643891,364.20777497,0.000157,2]
[398512259,1765768754312,166.66,0.0001506,2]
[398512260,1765768754545,166.66,0.00015377,2]
[398512261,1765768754860,166.66,0.00015694,2]
[398512268,1765768793553,-302.354483,0.00015718,2]
[398512299,1765768932009,1513.29,7.867e-05,2]
[398512300,1765768932214,1513.29,8.281e-05,2]
[398512301,1765768932416,1513.29,8.695e-05,2]
[398512302,1765768935526,1513.29,9.109e-05,2]
[398512303,1765768935582,1513.29,9.523e-05,2]
[398512305,1765768935654,1513.29,9.937e-05,2]
[398512306,1765768935719,315.561034,0.00010351,2]
[398512307,1765768935741,1197.728966,0.00010351,2]
[398512308,1765768935791,1513.29,0.00010766,2]
[398512309,1765768935854,1513.29,0.0001118,2]
[398512310,1765768935976,1513.29,0.00011594,2]
[398512311,1765768936029,1513.29,0.00012008,2]
[398512312,1765768936129,1513.29,0.00012422,2]
[398512313,1765768936196,1235.831034,0.00012836,2]
[398512314,1765768936218,277.458966,0.00012836,2]
[398512315,1765768936272,1513.29,0.0001325,2]
[398512316,1765768936356,1513.29,0.00013664,2]
[398512317,1765768936421,1513.29,0.00014078,2]
[398512318,1765768936517,1513.29,0.00014492,2]
[398512319,1765768936587,1513.29,0.00014906,2]
[398512320,1765768936652,1513.29,0.0001532,2]
[398512328,1765768961810,2467.12,0.00015683,2]
[398512344,1765769023081,185.200438,0.00015655,2]
[398512355,1765769134715,150.0,0.00015288,2]
[398512356,1765769134785,150.0,0.00015627,2]
[398512363,1765769137329,150.0,0.00015288,2]
[398512364,1765769137364,150.0,0.00015712,2]
[398512365,1765769137437,150.0,0.00015288,2]
[398512367,1765769142236,150.0,0.00015288,2]
[398512368,1765769142778,150.0,0.00015288,2]
[398512369,1765769143259,150.0,0.00015288,2]
[398512370,1765769157971,150.0,0.00015288,2]
[398512371,1765769208162,1500.0,0.00015631,2]
[398512380,1765769224282,1517.64,0.000153,2]
[398512382,1765769226056,1679.50067424,0.00015,2]
[398512402,1765769310189,2268.25300756,0.0001421,7]
[398512443,1765769335348,165.0,0.00022,30]
[398512444,1765769335581,164.0,0.00022,30]
[398512445,1765769335809,164.0,0.00022,30]
[398512446,1765769338446,164.0,0.00022,30]
[398512447,1765769338505,164.0,0.00022,30]
[398512449,1765769338997,164.0,0.00022,30]
[398512450,1765769339100,156.0,0.00022,30]
[398512451,1765769339161,154.0,0.00022,30]
[398512452,1765769339213,154.0,0.00022,30]
[398512454,1765769339291,154.0,0.00022,30]
[398512455,1765769339351,154.0,0.00022,30]
[398512456,1765769339417,154.0,0.00022,30]
[398512457,1765769339556,154.0,0.00022,30]
[398512458,1765769339777,154.0,0.00022,30]
[398512459,1765769340022,154.0,0.00022,30]
[398512460,1765769340240,154.0,0.00022,30]
[398512461,1765769340446,154.0,0.00022,30]
[398512462,1765769340974,154.0,0.00022,30]
[398512463,1765769341208,154.0,0.00022,30]
[398512464,1765769341457,154.0,0.00022,30]
[398512465,1765769341678,154.0,0.00022,30]
[398512466,1765769342282,154.0,0.00022,30]
[398512478,1765769365903,200.0,0.0001532,2]
[398512482,1765769388229,1812.57,0.0001532,2]
[398512486,1765769407925,872.0463182,0.00015718,2]
[398512487,1765769418664,-225.9536818,0.00015718,2]
[398512505,1765769431735,-1364.71260208,0.00015734,2]
[398512507,1765769431751,-148.57739792,0.00015734,2]
[398512509,1765769431760,-250.0,0.00015745,2]
[398512511,1765769431769,-177.53306224,0.00015754,2]
[398512513,1765769431778,-125.51528326,0.00015854,2]
[398512514,1765769431789,-24.48471674,0.00015854,2]
[398512515,1765769431798,-150.0,0.00015854,2]
[398512516,1765769431807,-250.0,0.00015856,2]
[398512517,1765769431815,-1058.84816865,0.00015877,2]
[398512518,1765769431826,-1259.55183135,0.00015877,2]
[398512519,1765769431835,-150.0,0.00015967,2]
[398512520,1765769431845,-2321.3514682,0.00016,2]
[398512521,1765769431854,-1007.11863997,0.00016,2]
[398512522,1765769431863,-1200.0,0.0001601,2]
[398512523,1765769431872,-166.66,0.00016011,2]
[398512524,1765769431881,-150.0,0.00016137,2]
[398512525,1765769431890,-150.0,0.00016137,2]
[398512526,1765769431900,-150.0,0.00016137,2]
[398512527,1765769431910,-578.20924308,0.00016149,2]
[398512528,1765769431920,-300.0,0.0001618,2]
[398512529,1765769431930,-4115.3152815,0.000162,5]
[398512530,1765769431945,-1189.407222,0.000162,5]
[398512531,1765769431957,-26518.61164684,0.000162,5]
[398512532,1765769431968,-822.58205089,0.000162,5]
[398512533,1765769432002,-3072.75616085,0.000162,5]
[398512534,1765769432019,-3152.48622529,0.000162,5]
[398512535,1765769432029,-1407.98,0.000162,2]
[398512536,1765769432039,-550.0,0.00016252,2]
[398512537,1765769432049,-3474.0,0.00016253,2]
[398512538,1765769432060,-3192.7083,0.00016281,2]
[398512539,1765769432070,-15807.3117,0.00016281,2]
[398512540,1765769432080,-250.0,0.00016307,2]
[398512541,1765769432089,-150.0,0.00016307,2]
[398512542,1765769432099,-16325.1655581,0.0001632,2]
[398512543,1765769432108,-166.66,0.00016328,2]
[398512544,1765769432118,-1098.0,0.00016359,2]
[398512545,1765769432127,-344.42,0.0001636,2]
[398512546,1765769432138,-161.07,0.0001636,2]
[398512547,1765769432147,-151.0,0.00016371,2]
[398512548,1765769432157,-1502.0,0.00016371,2]
[398512549,1765769432168,-300.0,0.00016371,2]
[398512550,1765769432179,-7182.84,0.0001638,2]
[398512551,1765769432189,-9999.99,0.0001638,2]
[398512552,1765769432198,-9424.3,0.00016381,2]
[398512553,1765769432207,-258.13373685,0.00016381,2]
[398512554,1765769433760,2057.68,0.000157,2]
[398512563,1765769437460,-305.96311241,0.0001628,2]
[398512564,1765769437515,-194.03688759,0.0001628,2]
[398512565,1765769437525,-196.98296492,0.0001628,2]
[398512566,1765769437535,-85.38031675,0.0001628,2]
[398512567,1765769437546,-407.22196959,0.0001628,2]
[398512568,1765769437568,-7.39771366,0.0001628,2]
[398512569,1765769437577,-500.0,0.0001628,2]
[398512570,1765769437587,-500.0,0.0001628,2]
[398512572,1765769437597,-16.07284634,0.0001628,2]
[398512590,1765769438130,-483.92715366,0.0001628,2]
[398512593,1765769438168,-158.19568677,0.0001628,2]
[398512700,1765769441003,-255.77104904,0.0001628,2]
[398512702,1765769441013,-278.05129689,0.00016381,2]
[398512704,1765769441024,-1204.981998,0.00016381,2]
[398512707,1765769441046,-617.05038201,0.00016381,2]
[398512711,1765769441069,-4299.06258625,0.00016381,2]
[398512713,1765769441078,-3803.03,0.00016381,2]
[398512715,1765769441091,-3474.0,0.00016382,2]
[398512717,1765769441100,-641.79,0.00016382,2]
[398512719,1765769441110,-16325.16555809,0.00016384,2]
[398512721,1765769441119,-151.46,0.00016395,2]
[398512723,1765769441128,-150.27,0.00016395,2]
[398512725,1765769441137,-1296.0,0.00016398,2]
[398512726,1765769441146,-247.71111491,0.00016399,2]
[398512727,1765769441156,-247.05331043,0.00016399,2]
[398512728,1765769441166,-500.0,0.00016399,2]
[398512729,1765769441175,-440.90284072,0.00016399,2]
[398512730,1765769441186,-512.73159885,0.00016399,2]
[398512731,1765769441195,-500.0,0.00016399,2]
[398512732,1765769441203,-80126.13203784,0.000164,2]
[398512733,1765769441214,-2500.0,0.00016407,2]
[398512734,1765769441224,-150.0,0.0001642,2]
[398512735,1765769441233,-150.0,0.0001642,2]
[398512736,1765769441243,-151.0,0.00016428,2]
[398512737,1765769441252,-500.0,0.00016428,2]
[398512738,1765769441262,-250.0,0.00016428,2]
[398512739,1765769441271,-500.0,0.00016428,2]
[398512740,1765769441282,-250.0,0.00016428,2]
[398512741,1765769441292,-500.0,0.00016428,2]
[398512742,1765769441305,-500.0,0.00016428,2]
[398512743,1765769441315,-250.0,0.00016428,2]
[398512744,1765769441326,-500.0,0.00016428,2]
[398512745,1765769441344,-250.0,0.00016428,2]
[398512746,1765769441353,-500.0,0.00016428,2]
[398512747,1765769441362,-500.0,0.00016428,2]
[398512748,1765769441372,-574.12855637,0.00016428,2]
[398512749,1765769441382,-250.0,0.00016428,2]
[398512750,1765769441391,-500.0,0.00016428,2]
[398512751,1765769441401,-250.0,0.00016428,2]
[398512752,1765769441411,-500.0,0.00016428,2]
[398512753,1765769441420,-250.0,0.00016428,2]
[398512754,1765769441430,-160.5112435,0.00016428,2]
[398512755,1765769441439,-500.0,0.00016428,2]
[398512756,1765769441449,-250.0,0.00016428,2]
[398512757,1765769441459,-250.0,0.00016428,2]
[398512758,1765769441468,-250.0,0.00016428,2]
[398512759,1765769441477,-250.0,0.00016428,2]
[398512760,1765769441486,-250.0,0.00016428,2]
[398512761,1765769441494,-250.0,0.00016428,2]
[398512762,1765769441503,-259.96853534,0.00016428,2]
[398512763,1765769441513,-200.0,0.00016428,2]
[398512764,1765769441522,-200.0,0.00016428,2]
[398512765,1765769441531,-151.0,0.00016428,2]
[398512766,1765769441540,-200.0,0.00016428,2]
[398512767,1765769441549,-151.0,0.00016428,2]
[398512768,1765769441558,-500.0,0.00016428,2]
[398512769,1765769441568,-620.0,0.00016428,2]
[398512770,1765769441577,-151.0,0.00016428,2]
[398512771,1765769441586,-151.0,0.00016428,2]
[398512772,1765769441595,-1000.0,0.00016428,2]
[398512773,1765769441604,-151.0,0.00016428,2]
[398512774,1765769441613,-151.0,0.00016428,2]
[398512775,1765769441623,-1000.0,0.00016428,2]
[398512776,1765769441632,-151.0,0.00016428,2]
[398512777,1765769441644,-1000.0,0.00016428,2]
[398512778,1765769441653,-151.0,0.00016428,2]
[398512779,1765769441662,-1000.0,0.00016428,2]
[398512780,1765769441671,-151.0,0.00016428,2]
[398512781,1765769441679,-1000.0,0.00016428,2]
[398512782,1765769441690,-151.0,0.00016428,2]
[398512783,1765769441699,-1000.0,0.00016428,2]
[398512784,1765769441709,-151.0,0.00016428,2]
[398512785,1765769441718,-151.0,0.00016428,2]
[398512786,1765769441727,-151.0,0.00016428,2]
[398512787,1765769441737,-1000.0,0.00016428,2]
[398512788,1765769441746,-151.0,0.00016428,2]
[398512789,1765769441755,-1000.0,0.00016428,2]
[398512790,1765769441764,-151.0,0.00016428,2]
[398512791,1765769441773,-1000.0,0.00016428,2]
[398512792,1765769441782,-151.0,0.00016428,2]
[398512793,1765769441791,-1000.0,0.00016428,2]
[398512794,1765769441800,-151.0,0.00016428,2]
[398512795,1765769441809,-1000.0,0.00016428,2]
[398512796,1765769441818,-240.01422505,0.00016428,2]
[398512797,1765769441827,-1000.0,0.00016428,2]
[398512798,1765769441836,-1000.0,0.00016428,2]
[398512799,1765769441845,-1000.0,0.00016428,2]
[398512800,1765769441855,-161.06626762,0.00016428,2]
[398512801,1765769441865,-1000.0,0.00016428,2]
[398512802,1765769441874,-1000.0,0.00016428,2]
[398512803,1765769441883,-1000.0,0.00016428,2]
[398512804,1765769441892,-151.0,0.00016428,2]
[398512805,1765769441901,-151.0,0.00016428,2]
[398512806,1765769441910,-151.0,0.00016428,2]
[398512807,1765769441919,-151.0,0.00016428,2]
[398512808,1765769441930,-151.0,0.00016428,2]
[398512809,1765769441939,-500.0,0.00016428,2]
[398512810,1765769441948,-151.0,0.00016428,2]
[398512811,1765769441957,-500.0,0.00016428,2]
[398512812,1765769441967,-500.0,0.00016428,2]
[398512813,1765769441976,-151.0,0.00016428,2]
[398512814,1765769441985,-938.10526179,0.00016428,2]
[398512815,1765769441994,-500.0,0.00016428,2]
[398512816,1765769442005,-151.0,0.00016428,2]
[398512817,1765769442014,-500.0,0.00016428,2]
[398512818,1765769442023,-151.0,0.00016428,2]
[398512819,1765769442032,-500.0,0.00016428,2]
[398512820,1765769442041,-151.0,0.00016428,2]
[398512821,1765769442050,-500.0,0.00016428,2]
[398512822,1765769442058,-1000.0,0.00016428,2]
[398512823,1765769442068,-500.0,0.00016428,2]
[398512824,1765769442076,-151.0,0.00016428,2]
[398512825,1765769442085,-500.0,0.00016428,2]
[398512826,1765769442094,-500.0,0.00016428,2]
[398512827,1765769442103,-500.0,0.00016428,2]